fUSD/lending_fUSD_20250417
["ID","MTS","AMOUNT","RATE_DAILY","PERIOD"]
[358249934,1744876295185,-500.0,0.00050958,120]
[358249935,1744876295195,-541.28,0.00050958,120]
[358249936,1744876295203,-565.01718139,0.00050958,120]
[358249937,1744876295211,-524.96,0.00050958,120]
[358249938,1744876295219,-500.0,0.00050958,120]
[358249939,1744876295228,-500.0,0.00050958,120]
[358249940,1744876295238,-776.69,0.00050958,120]
[358249941,1744876295247,-1055.54,0.00050958,120]
[358249942,1744876295255,-500.0,0.00050958,120]
[358249943,1744876295264,-1489.79,0.00050958,120]
[358249944,1744876295274,-1656.3,0.00050958,120]
[358249945,1744876295284,-1158.21,0.00050958,35]
[358249946,1744876295293,-500.0,0.00050958,120]
[358249947,1744876295302,-500.0,0.00050958,120]
[358249948,1744876295312,-500.0,0.00050958,120]
[358249949,1744876295321,-1223.23,0.00050958,120]
[358249950,1744876295331,-1296.94,0.00050958,120]
[358249951,1744876295340,-606.92,0.00050958,120]
[358249952,1744876295350,-500.0,0.00050958,120]
[358249953,1744876295360,-500.0,0.00050958,120]
[358249954,1744876295369,-1176.7,0.00050958,120]
[358249955,1744876295379,-1628.14,0.00050958,120]
[358249956,1744876295388,-1112.64,0.00050958,120]
[358249957,1744876295397,-2221.31,0.00050958,120]
[358249958,1744876295408,-500.0,0.00050958,120]
[358249959,1744876295417,-500.0,0.00050958,120]
[358249960,1744876295427,-500.0,0.00050958,120]
[358249961,1744876295436,-530.74,0.00050958,120]
[358249962,1744876295445,-862.16,0.00050958,120]
[358249963,1744876295454,-1379.41,0.00050958,120]
[358249964,1744876295464,-500.0,0.00050958,120]
[358249965,1744876295473,-507.47,0.00050958,120]
[358249966,1744876295483,-185.78788686,0.00050958,120]
[358249967,1744876295493,-500.0,0.00050958,120]
[358249968,1744876295503,-997.54,0.00050958,120]
[358249969,1744876295512,-1247.38,0.00050958,120]
[358249970,1744876295521,-500.0,0.00050958,120]
[358249971,1744876295531,-500.0,0.00050958,120]
[358249972,1744876295541,-500.0,0.00050958,120]
[358249973,1744876295551,-519.16,0.00050958,120]
[358249974,1744876295560,-730.71,0.00050958,120]
[358249975,1744876295570,-946.46,0.00050958,120]
[358249976,1744876295580,-500.0,0.00050958,120]
[358249977,1744876295590,-500.0,0.00050958,120]
[358249978,1744876295600,-1007.48,0.00050958,120]
[358249979,1744876295610,-559.91,0.00050958,120]
[358249980,1744876295619,-500.0,0.00050958,120]
[358249981,1744876295629,-1373.68,0.00050958,120]
[358249982,1744876295638,-500.0,0.00050958,120]
[358249983,1744876295648,-940.05,0.00050958,120]
[358249984,1744876295657,-500.0,0.00050958,120]
[358249985,1744876295667,-500.0,0.00050958,120]
[358249986,1744876295676,-1203.26,0.00050958,120]
[358249987,1744876295686,-825.67,0.00050958,120]
[358249988,1744876295695,-1575.92,0.00050958,120]
[358249989,1744876295705,-500.0,0.00050958,120]
[358249990,1744876295714,-1004.58,0.00050958,120]
[358249991,1744876295723,-392.45720583,0.00050958,120]
[358249992,1744876295732,-1167.01,0.00050958,120]
[358249993,1744876295742,-500.0,0.00050958,120]
[358249994,1744876295751,-701.01,0.00050958,120]
[358249995,1744876295761,-1323.83,0.00050958,120]
[358249996,1744876295770,-803.28,0.00050958,30]
[358249997,1744876295780,-507.89,0.00050958,120]
[358249998,1744876295789,-1748.54,0.00050958,120]
[358249999,1744876295799,-3514.34,0.00050958,120]
[358250000,1744876295808,-500.0,0.00050958,120]
[358250001,1744876295818,-500.0,0.00050958,120]
[358250002,1744876295827,-1749.19,0.00050958,120]
[358250003,1744876295837,-1134.15,0.00050958,120]
[358250004,1744876295846,-500.0,0.00050958,120]
[358250005,1744876295856,-1115.45,0.00050958,120]
[358250006,1744876295865,-1157.9,0.00050958,120]
[358250007,1744876295874,-1269.95,0.00050958,120]
[358250008,1744876295883,-1020.0,0.00050958,120]
[358250009,1744876295891,-500.0,0.00050958,120]
[358250010,1744876295900,-500.0,0.00050958,120]
[358250011,1744876295909,-1129.1,0.00050958,120]
[358250012,1744876295918,-568.86,0.00050958,120]
[358250013,1744876295928,-1581.24,0.00050958,120]
[358250014,1744876295937,-766.52,0.00050958,120]
[358250015,1744876295947,-500.0,0.00050958,120]
[358250016,1744876295956,-500.0,0.00050958,120]
[358250017,1744876295965,-683.59,0.00050958,120]
[358250018,1744876295974,-500.0,0.00050958,120]
[358250019,1744876295983,-605.07,0.00050958,120]
[358250020,1744876295993,-500.27528492,0.00050958,120]
[358250021,1744876296002,-1943.48,0.00050958,120]
[358250022,1744876296011,-500.0,0.00050958,120]
[358250023,1744876296020,-945.69,0.00050958,120]
[358250024,1744876296029,-500.0,0.00050958,120]
[358250025,1744876296038,-1873.76,0.00050958,120]
[358250026,1744876296047,-500.0,0.00050958,120]
[358250027,1744876296057,-537.01309138,0.00050958,120]
[358250028,1744876296066,-500.0,0.00050958,120]
[358250029,1744876296075,-566.9,0.00050958,120]
[358250030,1744876296084,-500.0,0.00050958,120]
[358250031,1744876296093,-536.75,0.00050958,120]
[358250032,1744876296102,-500.0,0.00050958,120]
[358250033,1744876296112,-500.0,0.00050958,30]
[358250034,1744876296125,-1511.21,0.00050958,120]
[358250035,1744876296134,-2015.84,0.00050958,120]
[358250036,1744876296144,-500.0,0.00050958,120]
[358250037,1744876296153,-500.0,0.00050958,120]
[358250038,1744876296163,-576.1,0.00050958,120]
[358250039,1744876296172,-500.0,0.00050958,120]
[358250040,1744876296181,-503.02,0.00050958,120]
[358250041,1744876296191,-1485.3,0.00050958,120]
[358250042,1744876296201,-500.0,0.00050958,120]
[358250043,1744876296211,-616.82,0.00050958,120]
[358250044,1744876296221,-1889.42,0.00050958,120]
[358250045,1744876296230,-500.0,0.00050958,120]
[358250046,1744876296239,-521.54,0.00050958,120]
[358250047,1744876296249,-500.0,0.00050958,120]
[358250048,1744876296258,-500.0,0.00050958,120]
[358250049,1744876296268,-1626.25,0.00050958,120]
[358250050,1744876296277,-1000.0,0.00050958,120]
[358250051,1744876296287,-1339.26,0.00050958,120]
[358250052,1744876296297,-1497.28,0.00050958,120]
[358250053,1744876296306,-1832.25,0.00050958,120]
[358250054,1744876296315,-630.84,0.00050958,120]
[358250055,1744876296325,-500.0,0.00050958,120]
[358250056,1744876296335,-615.64,0.00050958,120]
[358250057,1744876296344,-542.09401542,0.00050958,120]
[358250058,1744876296355,-500.0,0.00050958,120]
[358250059,1744876296366,-692.24,0.00050958,120]
[358250060,1744876296375,-500.0,0.00050958,120]
[358250061,1744876296385,-500.0,0.00050958,120]
[358250062,1744876296395,-1231.98,0.00050958,120]
[358250063,1744876296591,-1043.32,0.00050958,120]
[358250064,1744876296601,-595.59598155,0.00050958,120]
[358250065,1744876296611,-500.0,0.00050958,120]
[358250066,1744876296621,-1684.61,0.00050958,120]
[358250067,1744876296630,-500.0,0.00050958,120]
[358250068,1744876296640,-500.0,0.00050958,120]
[358250069,1744876296649,-668.2,0.00050958,120]
[358250070,1744876296659,-500.0,0.00050958,120]
[358250071,1744876296668,-500.0,0.00050958,120]
[358250072,1744876296677,-500.0,0.00050958,120]
[358250073,1744876296687,-500.0,0.00050958,120]
[358250074,1744876296697,-500.0,0.00050958,120]
[358250075,1744876296707,-417.36653413,0.00050958,120]
[358250076,1744876296715,-322.7707046,0.00050958,120]
[358250077,1744876296725,-500.0,0.00050958,120]
[358250078,1744876296735,-500.0,0.00050958,120]
[358250079,1744876296745,-864.39,0.00050958,120]
[358250080,1744876296755,-626.02,0.00050958,120]
[358250081,1744876296765,-1072.56,0.00050958,120]
[358250082,1744876296774,-500.0,0.00050958,120]
[358250083,1744876296784,-1764.88,0.00050958,120]
[358250084,1744876296794,-500.0,0.00050958,120]
[358250085,1744876296803,-5640.62,0.00050958,120]
[358250086,1744876296812,-917.98,0.00050958,120]
[358250087,1744876296822,-1475.44,0.00050958,120]
[358250088,1744876296832,-500.0,0.00050958,120]
[358250089,1744876296841,-500.0,0.00050958,120]
[358250090,1744876296851,-1612.75,0.00050958,120]
[358250091,1744876296860,-407.61778077,0.00050958,120]
[358250092,1744876296870,-500.0,0.00050958,120]
[358250093,1744876296879,-500.0,0.00050958,120]
[358250094,1744876296889,-2211.01,0.00050958,120]
[358250095,1744876296898,-791.97,0.00050958,14]
[358250096,1744876296908,-1177.02,0.00050958,120]
[358250097,1744876296917,-500.0,0.00050958,120]
[358250098,1744876296927,-1468.16,0.00050958,120]
[358250099,1744876296936,-1829.33,0.00050958,120]
[358250100,1744876296946,-500.0,0.00050958,120]
[358250101,1744876296955,-500.0,0.00050958,120]
[358250102,1744876296964,-520.62,0.00050958,120]
[358250103,1744876296974,-500.0,0.00050958,120]
[358250104,1744876296983,-500.0,0.00050958,120]
[358250105,1744876296994,-793.46,0.00050958,120]
[358250106,1744876297004,-500.0,0.00050958,120]
[358250107,1744876297013,-500.0,0.00050958,120]
[358250108,1744876297024,-500.0,0.00050958,120]
[358250109,1744876297033,-513.55561833,0.00050958,120]
[358250110,1744876297042,-500.0,0.00050958,120]
[358250111,1744876297052,-500.0,0.00050958,120]
[358250112,1744876297061,-527.45,0.00050958,120]
[358250113,1744876297071,-1128.03,0.00050958,120]
[358250114,1744876297080,-500.0,0.00050958,120]
[358250115,1744876297090,-500.0,0.00050958,120]
[358250116,1744876297099,-257.82903032,0.00050958,120]
[358250117,1744876297110,-500.0,0.00050958,120]
[358250118,1744876297120,-523.94,0.00050958,120]
[358250119,1744876297129,-500.0,0.00050958,120]
[358250120,1744876297138,-10543.98,0.00050958,120]
[358250121,1744876297147,-10543.98,0.00050958,120]
[358250122,1744876297155,-674.54,0.00050958,120]
[358250123,1744876297166,-504.45,0.00050958,120]
[358250124,1744876297174,-257.31606253,0.00050958,14]
[358250125,1744876297184,-500.0,0.00050958,120]
[358250126,1744876297194,-500.0,0.00050958,120]
[358250127,1744876297202,-586.57,0.00050958,120]
[358250128,1744876297212,-500.0,0.00050958,120]
[358250129,1744876297221,-500.0,0.00050958,120]
[358250130,1744876297230,-500.0,0.00050958,120]
[358250131,1744876297240,-500.0,0.00050958,120]
[358250132,1744876297249,-500.0,0.00050958,120]
[358250133,1744876297258,-500.0,0.00050958,120]
[358250134,1744876297268,-1036.71,0.00050958,120]
[358250135,1744876297276,-500.0,0.00050958,120]
[358250136,1744876297286,-909.38,0.00050958,120]
[358250137,1744876297294,-500.0,0.00050958,120]
[358250138,1744876297302,-500.0,0.00050958,120]
[358250139,1744876297310,-500.0,0.00050958,120]
[358250140,1744876297318,-500.0,0.00050958,120]
[358250141,1744876297326,-1171.86,0.00050958,120]
[358250142,1744876297334,-500.0,0.00050958,120]
[358250143,1744876297341,-500.0,0.00050958,120]
[358250144,1744876297350,-2181.26,0.00050958,120]
[358250145,1744876297358,-500.0,0.00050958,120]
[358250146,1744876297368,-675.13,0.00050958,120]
[358250147,1744876297379,-500.0,0.00050958,120]
[358250148,1744876297388,-500.0,0.00050958,120]
[358250149,1744876297398,-500.0,0.00050958,120]
[358250150,1744876297407,-500.0,0.00050958,120]
[358250151,1744876297417,-500.0,0.00050958,120]
[358250152,1744876297426,-500.0,0.00050958,120]
[358250153,1744876297436,-1081.53,0.00050958,120]
[358250154,1744876297445,-500.0,0.00050958,120]
[358250155,1744876297455,-1595.7,0.00050958,120]
[358250156,1744876297465,-500.0,0.00050958,120]
[358250157,1744876297474,-1097.37,0.00050958,120]
[358250158,1744876297483,-500.0,0.00050958,120]
[358250159,1744876297493,-500.0,0.00050958,120]
[358250160,1744876297503,-1093.79,0.00050958,120]
[358250161,1744876297512,-722.02,0.00050958,120]
[358250162,1744876297522,-978.59,0.00050958,120]
[358250163,1744876297531,-500.0,0.00050958,120]
[358250164,1744876297541,-1836.63,0.00050958,120]
[358250165,1744876297551,-500.0,0.00050958,120]
[358250166,1744876297560,-614.33,0.00050958,120]
[358250167,1744876297570,-1012.01,0.00050958,120]
[358250168,1744876297578,-2529.41,0.00050958,120]
[358250169,1744876297587,-1942.54,0.00050958,120]
[358250170,1744876297595,-500.0,0.00050958,120]
[358250171,1744876297605,-2464.72,0.00050958,120]
[358250172,1744876297614,-500.0,0.00050958,120]
[358250173,1744876297623,-1110.2,0.00050958,120]
[358250174,1744876297632,-771.84,0.00050958,120]
[358250175,1744876297640,-500.0,0.00050958,120]
[358250176,1744876297648,-1931.2,0.00050958,120]
[358250177,1744876297656,-500.0,0.00050958,120]
[358250178,1744876297665,-500.0,0.00050958,120]
[358250179,1744876297674,-676.22,0.00050958,120]
[358250180,1744876297683,-500.0,0.00050958,120]
[358250181,1744876297691,-500.0,0.00050958,120]
[358250182,1744876297701,-601.64,0.00050958,120]
[358250183,1744876297710,-2027.54,0.00050958,120]
[358250184,1744876297719,-1731.61,0.00050958,120]
[358250185,1744876297728,-500.0,0.00050958,120]
[358250186,1744876297737,-506.42,0.00050958,120]
[358250187,1744876297747,-560.74,0.00050958,120]
[358250188,1744876297756,-500.0,0.00050958,120]
[358250189,1744876297766,-1571.6,0.00050958,120]
[358250190,1744876297775,-575.17,0.00050958,120]
[358250191,1744876297784,-500.0,0.00050958,120]
[358250192,1744876297793,-500.0,0.00050958,120]
[358250193,1744876297803,-1491.97,0.00050958,120]
[358250194,1744876297812,-500.0,0.00050958,120]
[358250195,1744876297821,-1061.2,0.00050958,120]
[358250196,1744876297830,-500.0,0.00050958,120]
[358250197,1744876297839,-1783.03,0.00050958,120]
[358250198,1744876297849,-500.0,0.00050958,120]
[358250199,1744876297857,-559.87,0.00050958,120]
[358250200,1744876297866,-500.0,0.00050958,120]
[358250201,1744876297876,-500.0,0.00050958,120]
[358250202,1744876297885,-500.0,0.00050958,120]
[358250203,1744876297894,-500.0,0.00050958,120]
[358250204,1744876297903,-1489.6,0.00050958,120]
[358250205,1744876297912,-3035.42,0.00050958,120]
[358250206,1744876297922,-2015.28,0.00050958,120]
[358250207,1744876297931,-1985.57,0.00050958,120]
[358250208,1744876297940,-835.38,0.00050958,120]
[358250209,1744876297949,-843.17,0.00050958,120]
[358250210,1744876297958,-522.16833114,0.00050958,120]
[358250211,1744876297967,-728.48,0.00050958,120]
[358250212,1744876297976,-2125.57,0.00050958,120]
[358250213,1744876297985,-506.65,0.00050958,120]
[358250214,1744876297995,-517.91,0.00050958,120]
[358250215,1744876298004,-531.0,0.00050958,120]
[358250216,1744876298014,-1110.06,0.00050958,120]
[358250217,1744876298023,-500.0,0.00050958,120]
[358250218,1744876298032,-3548.1,0.00050958,120]
[358250219,1744876298041,-887.03,0.00050958,120]
[358250220,1744876298050,-500.0,0.00050958,120]
[358250221,1744876298059,-1073.22,0.00050958,120]
[358250222,1744876298069,-500.0,0.00050958,120]
[358250223,1744876298078,-500.0,0.00050958,120]
[358250224,1744876298087,-500.0,0.00050958,120]
[358250225,1744876298097,-500.0,0.00050958,120]
[358250226,1744876298106,-500.0,0.00050958,120]
[358250227,1744876298118,-500.0,0.00050958,120]
[358250228,1744876298128,-573.42480629,0.00050958,120]
[358250229,1744876298137,-500.0,0.00050958,120]
[358250230,1744876298147,-500.0,0.00050958,120]
[358250231,1744876298156,-1152.77,0.00050958,120]
[358250232,1744876298167,-500.0,0.00050958,120]
[358250233,1744876298176,-2168.54,0.00050958,120]
[358250234,1744876298186,-568.46,0.00050958,120]
[358250235,1744876298197,-500.0,0.00050958,120]
[358250236,1744876298207,-500.0,0.00050958,120]
[358250237,1744876298217,-500.0,0.00050958,120]
[358250238,1744876298226,-888.6,0.00050958,120]
[358250239,1744876298236,-500.0,0.00050958,120]
[358250240,1744876298246,-1780.21,0.00050958,120]
[358250241,1744876298256,-500.0,0.00050958,120]
[358250242,1744876298265,-979.12,0.00050958,120]
[358250243,1744876298275,-2832.46,0.00050958,120]
[358250244,1744876298284,-1076.61,0.00050958,120]
[358250245,1744876298293,-518.93,0.00050958,120]
[358250246,1744876298303,-500.0,0.00050958,120]
[358250247,1744876298313,-889.68,0.00050958,120]
[358250248,1744876298323,-500.0,0.00050958,120]
[358250249,1744876298333,-3566.71,0.00050958,120]
[358250250,1744876298343,-1124.76,0.00050958,120]
[358250251,1744876298354,-1217.56,0.00050958,120]
[358250252,1744876298364,-1639.19,0.00050958,120]
[358250253,1744876298374,-1092.56,0.00050958,120]
[358250254,1744876298383,-500.0,0.00050958,120]
[358250255,1744876298393,-972.81,0.00050958,118]
[358250256,1744876298402,-1788.27,0.00050958,120]
[358250257,1744876298411,-861.37,0.00050958,120]
[358250258,1744876298421,-822.54,0.00050958,120]
[358250259,1744876298431,-500.0,0.00050958,120]
[358250260,1744876298440,-500.0,0.00050958,120]
[358250261,1744876298450,-411.08201508,0.00050958,120]
[358250262,1744876298460,-702.66,0.00050958,120]
[358250263,1744876298469,-1270.01,0.00050958,120]
[358250264,1744876298478,-500.0,0.00050958,120]
[358250265,1744876298487,-500.0,0.00050958,120]
[358250266,1744876298497,-909.8,0.00050958,120]
[358250267,1744876298507,-593.0,0.00050958,120]
[358250268,1744876298516,-753.51,0.00050958,120]
[358250269,1744876298526,-516.56,0.00050958,120]
[358250270,1744876298535,-973.47,0.00050958,120]
[358250271,1744876298545,-500.0,0.00050958,120]
[358250272,1744876298554,-2790.52,0.00050958,120]
[358250273,1744876298564,-489.19,0.00050958,120]
[358250274,1744876298573,-500.0,0.00050958,120]
[358250275,1744876298583,-500.0,0.00050958,120]
[358250276,1744876298593,-555.93,0.00050958,120]
[358250277,1744876298602,-554.36,0.00050958,120]
[358250278,1744876298612,-1344.71,0.00050958,120]
[358250279,1744876298621,-1633.9,0.00050958,120]
[358250280,1744876298631,-1508.99,0.00050958,120]
[358250281,1744876298640,-500.0,0.00050958,120]
[358250282,1744876298649,-500.0,0.00050958,120]
[358250283,1744876298659,-801.2,0.00050958,120]
[358250284,1744876298668,-3739.63,0.00050958,120]
[358250285,1744876298677,-2484.07,0.00050958,120]
[358250286,1744876298686,-500.0,0.00050958,120]
[358250287,1744876298695,-500.0,0.00050958,120]
[358250288,1744876298704,-605.98,0.00050958,120]
[358250289,1744876298713,-500.0,0.00050958,120]
[358250290,1744876298722,-500.0,0.00050958,120]
[358250291,1744876298732,-3141.6,0.00050958,120]
[358250292,1744876298741,-1042.98,0.00050958,120]
[358250293,1744876298751,-536.48,0.00050958,120]
[358250294,1744876298761,-1821.22,0.00050958,120]
[358250295,1744876298770,-500.0,0.00050958,120]
[358250296,1744876298779,-1155.97,0.00050958,120]
[358250297,1744876298789,-500.0,0.00050958,120]
[358250298,1744876298799,-608.82,0.00050958,120]
[358250299,1744876298808,-310.94087298,0.00050958,120]
[358250300,1744876298817,-1542.01,0.00050958,120]
[358250301,1744876298827,-500.0,0.00050958,120]
[358250302,1744876298837,-500.0,0.00050958,120]
[358250303,1744876298846,-608.54,0.00050958,120]
[358250304,1744876298855,-500.0,0.00050958,120]
[358250305,1744876298864,-1023.29,0.00050958,120]
[358250306,1744876298874,-505.15,0.00050958,120]
[358250307,1744876298883,-512.28,0.00050958,120]
[358250308,1744876298893,-996.12,0.00050958,120]
[358250309,1744876298902,-500.0,0.00050958,120]
[358250310,1744876298912,-821.03,0.00050958,120]
[358250311,1744876298923,-500.0,0.00050958,120]
[358250312,1744876298932,-533.51,0.00050958,120]
[358250313,1744876298942,-1488.96,0.00050958,120]
[358250314,1744876298951,-2888.97,0.00050958,120]
[358250315,1744876298960,-500.0,0.00050958,120]
[358250316,1744876298969,-605.83,0.00050958,120]
[358250317,1744876298979,-500.0,0.00050958,120]
[358250318,1744876298988,-570.18,0.00050958,120]
[358250319,1744876298998,-722.72,0.00050958,120]
[358250320,1744876299007,-754.15,0.00050958,120]
[358250321,1744876299016,-1214.83,0.00050958,120]
[358250322,1744876299026,-3500.0,0.00050958,10]
[358250323,1744876299035,-500.0,0.00050958,120]
[358250324,1744876299044,-500.0,0.00050958,2]
[358250325,1744876299054,-1002.18,0.00050958,8]
[358250326,1744876299063,-500.0,0.00050958,120]
[358250327,1744876299073,-1218.38,0.00050958,120]
[358250328,1744876299082,-1097.9,0.00050958,120]
[358250329,1744876299092,-500.0,0.00050958,120]
[358250330,1744876299101,-1622.19,0.00050958,120]
[358250331,1744876299110,-7361.74,0.00050958,120]
[358250332,1744876299122,-779.5,0.00050958,120]
[358250333,1744876299132,-2365.86,0.00050958,120]
[358250334,1744876299141,-517.32825431,0.00050958,120]
[358250335,1744876299151,-581.09328679,0.00050958,120]
[358250336,1744876299160,-500.0,0.00050958,120]
[358250337,1744876299170,-282.29477382,0.00050958,30]
[358250338,1744876299179,-1857.1755301,0.00050965,2]
[358250339,1744876299189,-1740.049871,0.00050965,2]
[358250340,1744876299201,-10031.2907439,0.00050965,2]
[358250341,1744876299214,-9398.6518142,0.00050965,2]
[358250342,1744876299223,-81305.9400838,0.00050965,2]
[358250343,1744876299233,-76178.2547015,0.00050965,2]
[358250344,1744876299242,-10528.2087214,0.00050965,2]
[358250345,1744876299252,-9155.1010329,0.00050965,2]
[358250346,1744876299261,-2604.427263,0.00050965,2]
[358250347,1744876299270,-2255.1228042,0.00050965,2]
[358250348,1744876299280,-1791.426248,0.00050965,2]
[358250349,1744876299289,-1551.1610714,0.00050965,2]
[358250350,1744876299299,-218.01,0.00050979,120]
[358250351,1744876299309,-150.5,0.00050989,120]
[358250352,1744876299319,-1000.0,0.00050998,120]
[358250353,1744876299329,-50659.7528083,0.00050999,120]
[358250354,1744876299339,-405.85734434,0.00051,2]
[358250355,1744876299348,-243.5144066,0.00051,2]
[358250356,1744876299359,-162.34293774,0.00051,2]
[358250357,1744876299369,-2080.27980432,0.00051,120]
[358250358,1744876299378,-6703367.2,0.00051,120]
[358250359,1744876299387,-282.29477382,0.00051,30]
[358250360,1744876299397,-3000.0,0.00051,120]
[358250361,1744876299406,-474.97054933,0.00051041,42]
[358250362,1744876299416,-549.24834,0.0005107,90]
[358250363,1744876299426,-2110.0,0.00051102,30]
[358250364,1744876299435,-658.32958279,0.00051123,120]
[358250365,1744876299444,-158.811424,0.00051232,120]
[358250366,1744876299453,-591.156374,0.00051232,120]
[358250367,1744876299463,-227.981738,0.00051232,120]
[358250368,1744876299472,-500.0,0.00051232,120]
[358250369,1744876299482,-1611.74,0.00051232,120]
[358250370,1744876299492,-772.09,0.00051232,120]
[358250371,1744876299502,-3077.05,0.00051232,120]
[358250372,1744876299511,-500.0,0.00051232,120]
[358250373,1744876299520,-500.0,0.00051232,120]
[358250374,1744876299531,-516.0,0.00051232,120]
[358250375,1744876299540,-825.74,0.00051232,120]
[358250376,1744876299551,-500.0,0.00051232,120]
[358250377,1744876299561,-500.0,0.00051232,120]
[358250378,1744876299571,-500.0,0.00051232,120]
[358250379,1744876299581,-1329.86,0.00051232,120]
[358250380,1744876299590,-1041.46,0.00051232,120]
[358250381,1744876299600,-500.0,0.00051232,120]
[358250382,1744876299609,-500.0,0.00051232,120]
[358250383,1744876299619,-995.71,0.00051232,120]
[358250384,1744876299629,-500.0,0.00051232,120]
[358250385,1744876299638,-500.0,0.00051232,120]
[358250386,1744876299648,-561.46,0.00051232,30]
[358250387,1744876299657,-500.0,0.00051232,120]
[358250388,1744876299667,-889.17,0.00051232,120]
[358250389,1744876299676,-1598.19,0.00051232,120]
[358250390,1744876299685,-500.0,0.00051232,120]
[358250391,1744876299695,-2447.13,0.00051232,120]
[358250392,1744876299704,-934.81,0.00051232,120]
[358250393,1744876299887,-500.0,0.00051232,120]
[358250394,1744876299897,-558.88,0.00051232,120]
[358250395,1744876299906,-500.0,0.00051232,120]
[358250396,1744876299915,-500.0,0.00051232,120]
[358250397,1744876299924,-230.56416189,0.00051232,120]
[358250398,1744876299933,-500.0,0.00051232,120]
[358250399,1744876299944,-500.0,0.00051232,120]
[358250400,1744876299953,-120995.21,0.00051232,7]
[358250401,1744876299963,-500.0,0.00051232,120]
[358250402,1744876299972,-1597.3,0.00051232,120]
[358250403,1744876299982,-724.18,0.00051232,2]
[358250404,1744876299994,-500.0,0.00051232,120]
[358250405,1744876300003,-500.0,0.00051232,120]
[358250406,1744876300012,-1073.23,0.00051232,120]
[358250407,1744876300022,-852.63,0.00051232,120]
[358250408,1744876300031,-500.0,0.00051232,120]
[358250409,1744876300041,-9618.82,0.00051232,2]
[358250410,1744876300051,-500.0,0.00051232,120]
[358250411,1744876300060,-500.0,0.00051232,120]
[358250412,1744876300070,-500.0,0.00051232,120]
[358250413,1744876300081,-748.68,0.00051232,120]
[358250414,1744876300091,-507.6,0.00051232,120]
[358250415,1744876300103,-461.81662504,0.00051232,120]
[358250416,1744876300112,-4167.06,0.00051232,120]
[358250417,1744876300126,-547.49,0.00051232,120]
[358250418,1744876300136,-762.47,0.00051232,120]
[358250419,1744876300145,-1761.11,0.00051232,120]
[358250420,1744876300155,-500.0,0.00051232,120]
[358250421,1744876300165,-500.0,0.00051232,120]
[358250422,1744876300175,-603.07,0.00051232,120]
[358250423,1744876300184,-677.96,0.00051232,120]
[358250424,1744876300194,-895.97,0.00051232,120]
[358250425,1744876300205,-2042.51,0.00051232,120]
[358250426,1744876300215,-2095.32,0.00051232,120]
[358250427,1744876300225,-500.0,0.00051232,120]
[358250428,1744876300234,-500.0,0.00051232,120]
[358250429,1744876300243,-783.72,0.00051232,120]
[358250430,1744876300253,-568.82,0.00051232,120]
[358250431,1744876300262,-670.78,0.00051232,120]
[358250432,1744876300272,-1727.55,0.00051232,120]
[358250433,1744876300280,-500.0,0.00051232,120]